bitfinex-derivatives/quotes_BTCF0:USTF0_20260118
["timestamp","ask_amount","ask_price","bid_price","bid_amount"]
[1768729402492,0.10479144,95320.0,95305.0,0.02881741]
[1768729402793,0.10479144,95320.0,95304.0,0.11575882]
[1768729403395,0.010496,95315.0,95304.0,0.11575882]
[1768729405488,0.010496,95315.0,95307.0,0.05652298]
[1768729405789,0.010496,95315.0,95306.0,0.05652298]
[1768729412501,0.010496,95313.0,95306.0,0.05652298]
[1768729414091,0.010496,95313.0,95305.0,0.05652298]
[1768729415795,0.09772953,95318.0,95305.0,9.8e-07]
[1768729415997,0.010496,95310.0,95300.0,0.01599973]
[1768729418603,0.11528744,95310.0,95300.0,0.01599973]
[1768729419105,0.010496,95310.0,95300.0,0.01599973]
[1768729419903,0.010497,95308.0,95300.0,0.01599973]
[1768729424808,0.010497,95308.0,95297.0,0.20557014]
[1768729427207,0.010497,95308.0,95298.0,0.0377652]
[1768729428211,0.010497,95308.0,95298.0,0.05371723]
[1768729431711,0.010497,95307.0,95298.0,0.05371723]
[1768729431918,0.10479144,95310.0,95298.0,0.05371723]
[1768729432114,0.21325198,95317.0,95298.0,0.13240559]
[1768729432519,0.10479144,95310.0,95298.0,0.13240559]
[1768729433220,0.21325198,95317.0,95298.0,0.13240559]
[1768729433420,0.10479144,95310.0,95298.0,0.13240559]
[1768729434117,0.10479144,95310.0,95305.0,2e-07]
[1768729434414,0.010496,95311.0,95305.0,2e-07]
[1768729435316,0.010497,95309.0,95305.0,2e-07]
[1768729442432,0.00442469,98196.0,95300.0,0.11645356]
[1768729442433,0.04124725,95321.0,95300.0,0.11645356]
[1768729442622,0.19931144,95320.0,95300.0,0.11645356]
[1768729442817,0.10479144,95310.0,95300.0,0.11645356]
[1768729443022,0.10479144,95310.0,95298.0,0.17037153]
[1768729443023,0.10479144,95310.0,95299.0,0.0566472]
[1768729444228,0.10479144,95310.0,95298.0,0.17037153]
[1768729444632,0.10479144,95310.0,95298.0,0.07259923]
[1768729445534,0.010496,95311.0,95298.0,0.18905279]
[1768729445736,0.10479144,95310.0,95298.0,0.18905279]
[1768729448938,0.010496,95309.0,95298.0,0.18905279]
[1768729452436,0.010496,95309.0,95301.0,0.0566472]
[1768729452639,0.010496,95309.0,95301.0,0.03274931]
[1768729452833,0.10479144,95310.0,95301.0,0.03274931]
[1768729453533,0.10479144,95310.0,95298.0,0.13240559]
[1768729455356,0.010496,95309.0,95298.0,0.13240559]
[1768729457546,0.010496,95312.0,95298.0,0.13240559]
[1768729458943,0.010496,95310.0,95298.0,0.13240559]
[1768729460646,0.010496,95313.0,95298.0,0.13240559]
[1768729461637,0.010496,95311.0,95298.0,0.13240559]
[1768729464150,0.010496,95311.0,95305.0,0.03776944]
[1768729467047,0.09452,95315.0,95305.0,0.03776944]
[1768729468449,0.010496,95312.0,95305.0,0.03776944]
[1768729470154,0.09452,95315.0,95305.0,0.03776944]
[1768729470756,0.010496,95314.0,95305.0,0.03776944]
[1768729472555,0.010496,95314.0,95307.0,0.03776944]
[1768729472851,0.010496,95314.0,95298.0,0.13240559]
[1768729473554,0.010496,95314.0,95304.0,0.05665839]
[1768729474258,0.010496,95314.0,95298.0,0.13240559]
[1768729479253,0.010496,95314.0,95298.0,0.11645356]
[1768729482758,0.010496,95312.0,95298.0,0.11645356]
[1768729484362,0.010496,95312.0,95298.0,0.17311195]
[1768729484557,0.010496,95312.0,95299.0,0.11558713]
[1768729486769,0.09452,95315.0,95299.0,0.11558713]
[1768729488471,0.010496,95311.0,95299.0,0.11558713]
[1768729490261,0.09452,95315.0,95299.0,0.11558713]
[1768729491470,0.010496,95310.0,95299.0,0.11558713]
[1768729492254,0.010497,95308.0,95299.0,0.11558713]
[1768729492660,0.010497,95308.0,95299.0,0.17224552]
[1768729492860,0.010497,95308.0,95299.0,0.11558713]
[1768729494263,0.010497,95308.0,95300.0,0.05665839]
[1768729495874,0.010497,95306.0,95300.0,0.05665839]
[1768729496580,0.010497,95306.0,95300.0,0.04914642]
[1768729500274,0.010496,95309.0,95300.0,0.04914642]
[1768729502771,0.010496,95309.0,95299.0,0.11558713]
[1768729502772,0.010496,95309.0,95307.0,2.2e-07]
[1768729504182,0.010496,95309.0,95299.0,0.11558713]
[1768729505075,0.010497,95307.0,95299.0,0.11558713]
[1768729507882,0.09452,95315.0,95299.0,0.11558713]
[1768729508283,0.13567216,95315.0,95299.0,0.11558713]
[1768729508785,0.09452,95315.0,95299.0,0.11558713]
[1768729509083,0.09552,95315.0,95299.0,0.11558713]
[1768729509584,0.010497,95306.0,95299.0,0.11558713]
[1768729520799,0.010497,95306.0,95300.0,0.0283287]
[1768729521400,0.010497,95306.0,95300.0,7e-07]
[1768729522406,0.010497,95306.0,95299.0,0.11558713]
[1768729523806,0.010497,95304.0,95299.0,0.11558713]
[1768729524203,0.10481214,95310.0,95302.0,4e-08]
[1768729524504,0.09978455,95312.0,95302.0,4e-08]
[1768729525501,0.00543359,95305.0,95302.0,4e-08]
[1768729526105,0.09978455,95312.0,95302.0,4e-08]
[1768729527409,0.010497,95305.0,95302.0,4e-08]
[1768729527706,0.09470151,95312.0,95302.0,4e-08]
[1768729527906,0.10481214,95312.0,95302.0,4e-08]
[1768729528911,0.09452,95315.0,95302.0,4e-08]
[1768729529105,0.10481214,95312.0,95302.0,4e-08]
[1768729529606,0.010497,95306.0,95302.0,4e-08]
[1768729529806,0.00552007,95306.0,95302.0,4e-08]
[1768729530519,0.010497,95306.0,95302.0,4e-08]
[1768729530711,0.0055068,95306.0,95302.0,4e-08]
[1768729530914,0.10481214,95312.0,95302.0,4e-08]
[1768729531412,0.010497,95306.0,95302.0,4e-08]
[1768729532113,0.00550956,95306.0,95302.0,4e-08]
[1768729532505,0.09480532,95312.0,95302.0,4e-08]
[1768729532819,0.10481214,95312.0,95302.0,4e-08]
[1768729533616,0.10481214,95312.0,95296.0,0.10837865]
[1768729533813,0.10481214,95310.0,95296.0,0.10837865]
[1768729534415,0.010497,95307.0,95296.0,0.10837865]
[1768729535309,0.00558475,95307.0,95296.0,0.10837865]
[1768729535907,0.10481214,95310.0,95296.0,0.10837865]
[1768729535908,0.010497,95305.0,95296.0,0.10837865]
[1768729543121,0.010497,95303.0,95296.0,0.10837865]
[1768729544322,0.10481214,95310.0,95296.0,0.10837865]
[1768729545529,0.010497,95303.0,95296.0,0.10837865]
[1768729550717,0.010497,95301.0,95296.0,6.5e-07]
[1768729551128,0.010497,95301.0,95293.0,0.17312377]
[1768729552230,0.010497,95301.0,95294.0,0.07535147]
[1768729553633,0.010497,95301.0,95294.0,0.09748144]
[1768729554032,0.10481214,95310.0,95294.0,0.09748144]
[1768729554331,0.010497,95302.0,95294.0,0.09748144]
[1768729554533,0.09982227,95310.0,95294.0,0.09748144]
[1768729555130,0.2999911,95315.0,95294.0,0.09748144]
[1768729555327,0.10481214,95310.0,95294.0,0.09748144]
[1768729555927,0.10481214,95320.0,95296.0,0.02207228]
[1768729556227,0.010494,95329.0,95315.0,0.02207228]
[1768729556538,0.010494,95329.0,95319.0,0.15465547]
[1768729556726,0.010494,95329.0,95319.0,0.10481214]
[1768729556925,0.0134259,95330.0,95319.0,0.10481214]
[1768729557128,0.09362828,95337.0,95319.0,0.17594297]
[1768729557129,0.10412128,95337.0,95319.0,0.17594297]
[1768729557320,0.010494,95333.0,95320.0,0.02207228]
[1768729558533,0.02403909,95333.0,95320.0,0.02207228]
[1768729560126,0.01354509,95333.0,95320.0,0.02207228]
[1768729560327,0.010494,95335.0,95320.0,0.02207228]
[1768729560719,0.010494,95335.0,95320.0,0.0718548]
[1768729560926,0.09452,95334.0,95320.0,0.0718548]
[1768729561122,0.09452,95334.0,95320.0,0.02207228]
[1768729562828,0.09452,95334.0,95320.0,0.05973471]
[1768729563133,0.09452,95334.0,95320.0,0.02207228]
[1768729566138,0.010494,95333.0,95320.0,0.12688442]
[1768729566934,0.010494,95333.0,95320.0,0.02207228]
[1768729568233,0.010494,95333.0,95316.0,0.02818908]
[1768729571638,0.010493,95337.0,95321.0,0.02792144]
[1768729571831,0.10481214,95340.0,95321.0,0.02792144]
[1768729572029,0.010493,95339.0,95321.0,0.02792144]
[1768729572234,0.010493,95339.0,95322.0,0.010495]
[1768729574140,0.010493,95339.0,95323.0,0.03766243]
[1768729575244,0.02374647,95339.0,95323.0,0.03766243]
[1768729575554,0.01325347,95339.0,95324.0,0.010495]
[1768729575843,0.19929214,95340.0,95324.0,0.010495]
[1768729576045,0.19929214,95340.0,95326.0,0.010494]
[1768729576245,0.10481214,95340.0,95326.0,0.010494]
[1768729576440,0.19929214,95340.0,95326.0,0.010494]
[1768729577548,0.09448,95340.0,95326.0,0.010494]
[1768729577747,0.31258258,95340.0,95324.0,0.03766243]
[1768729577936,0.32307558,95340.0,95323.0,0.04815743]
[1768729578337,0.32307558,95340.0,95324.0,0.03766243]
[1768729578537,0.21810258,95340.0,95325.0,0.010495]
[1768729578738,0.31258258,95340.0,95327.0,0.010494]
[1768729578943,0.31258258,95340.0,95329.0,0.010494]
[1768729579135,0.31258258,95340.0,95326.0,0.010495]
[1768729579449,0.2212278,95340.0,95326.0,0.010495]
[1768729579948,0.2212278,95340.0,95324.0,0.03766243]
[1768729580652,0.010493,95339.0,95324.0,0.03766243]
[1768729581344,0.010493,95339.0,95325.0,0.03766243]
[1768729581545,0.010493,95339.0,95331.0,0.02823509]
[1768729582251,0.26863888,95340.0,95334.0,0.02823509]
[1768729582441,0.010493,95339.0,95334.0,0.02823509]
[1768729582844,0.26863888,95340.0,95334.0,0.02823509]
[1768729583140,0.20156564,95340.0,95335.0,0.05788191]
[1768729583342,0.20156564,95340.0,95337.0,0.02823509]
[1768729583642,0.20156564,95340.0,95328.0,0.05643575]
[1768729583643,0.20156564,95340.0,95332.0,0.03766243]
[1768729583842,0.20156564,95340.0,95333.0,0.02933716]
[1768729584043,0.10708564,95340.0,95334.0,0.02933716]
[1768729584341,0.10708564,95340.0,95335.0,0.02933716]
[1768729584542,0.10708564,95340.0,95336.0,0.02933716]
[1768729584848,0.10708564,95340.0,95337.0,0.02933716]
[1768729585149,0.10708564,95340.0,95333.0,0.03766243]
[1768729585447,0.10708564,95340.0,95324.0,0.010495]
[1768729585448,0.02202023,95340.0,95334.0,0.06702776]
[1768729585744,0.02202023,95340.0,95335.0,0.02936533]
[1768729585952,0.02202023,95340.0,95336.0,0.02936533]
[1768729586246,0.02202023,95340.0,95337.0,0.02936533]
[1768729586549,0.02202023,95340.0,95332.0,0.03766243]
[1768729586751,0.02202023,95340.0,95333.0,0.02924537]
[1768729586942,0.02202023,95340.0,95334.0,0.02924537]
[1768729587142,0.03531195,95340.0,95335.0,0.02406151]
[1768729587452,0.03531195,95340.0,95336.0,5.1e-07]
[1768729587648,0.03531195,95340.0,95332.0,0.03766243]
[1768729587951,0.010493,95339.0,95332.0,0.03766243]
[1768729589745,0.03531195,95340.0,95332.0,0.03766243]
[1768729592252,0.03531195,95340.0,95322.0,0.010495]
[1768729592253,0.03531195,95340.0,95333.0,0.03766243]
[1768729595356,0.09448,95341.0,95333.0,0.03766243]
[1768729595655,0.09448,95341.0,95322.0,0.010495]
[1768729595656,0.09448,95341.0,95334.0,0.03766243]
[1768729596246,0.09448,95341.0,95335.0,0.03766243]
[1768729596655,0.09448,95341.0,95334.0,0.03766243]
[1768729598158,0.09448,95341.0,95335.0,0.03766243]
[1768729598759,0.104973,95341.0,95335.0,0.03766243]
[1768729599059,0.11943186,95341.0,95335.0,0.03766243]
[1768729601167,0.11943186,95341.0,95336.0,4.3e-07]
[1768729601667,0.11943186,95341.0,95329.0,0.05643575]
[1768729601850,0.11943186,95341.0,95327.0,0.05643575]
[1768729602054,0.11943186,95341.0,95321.0,0.03841644]
[1768729602055,0.11943186,95341.0,95328.0,0.05643575]
[1768729602656,0.11943186,95341.0,95329.0,0.02891227]
[1768729602855,0.11943186,95341.0,95328.0,0.05643575]
[1768729602856,0.11943186,95341.0,95330.0,0.02891227]
[1768729603154,0.11943186,95341.0,95331.0,0.02891227]
[1768729603351,0.11943186,95341.0,95332.0,0.02891227]
[1768729603552,0.11943186,95341.0,95333.0,0.02891227]
[1768729603765,0.11943186,95341.0,95334.0,0.02891227]
[1768729603968,0.11943186,95341.0,95335.0,0.02891227]
[1768729604162,0.11943186,95341.0,95336.0,0.02891227]
[1768729604466,0.11943186,95341.0,95337.0,0.02891227]
[1768729604765,0.11943186,95341.0,95338.0,2.7e-07]
[1768729604956,0.11943186,95341.0,95328.0,0.05643575]
[1768729605266,0.03436656,95341.0,95328.0,0.05643575]
[1768729605671,0.03436656,95341.0,95327.0,0.05643575]
[1768729608571,0.02387356,95341.0,95327.0,0.05643575]
[1768729610073,0.01445886,95341.0,95327.0,0.05643575]
[1768729610272,0.09448,95342.0,95327.0,0.05643575]
[1768729611674,0.09448,95342.0,95329.0,0.05643575]
[1768729611874,0.09448,95342.0,95328.0,0.05643575]
[1768729612268,0.09448,95342.0,95326.0,0.05643575]
[1768729612467,0.1089403,95342.0,95326.0,0.05643575]
[1768729612876,0.1194333,95342.0,95326.0,0.05643575]
[1768729614378,0.1194333,95342.0,95325.0,0.010495]
[1768729616768,0.09448,95341.0,95325.0,0.010495]
[1768729619474,0.2256156,95342.0,95322.0,0.010495]
[1768729619876,0.1166753,95341.0,95322.0,0.010495]
[1768729620481,0.010493,95340.0,95322.0,0.010495]
[1768729622276,0.010493,95338.0,95322.0,0.010495]
[1768729624080,0.1166753,95341.0,95322.0,0.010495]
[1768729624081,0.1271683,95341.0,95322.0,0.010495]
[1768729624278,0.1271683,95341.0,95329.0,0.05643575]
[1768729629585,0.1166753,95341.0,95329.0,0.05643575]
[1768729631483,0.1089403,95342.0,95333.0,0.03773549]
[1768729631683,0.1089403,95342.0,95333.0,0.01384375]
[1768729631984,0.1089403,95342.0,95326.0,0.010494]
[1768729636787,0.09448,95342.0,95328.0,0.010494]
[1768729638979,0.11898273,95344.0,95328.0,0.010494]
[1768729641797,0.11898273,95344.0,95328.0,0.06692975]
[1768729641984,0.11898273,95344.0,95328.0,0.010494]
[1768729643193,0.11898273,95344.0,95330.0,0.11523506]
[1768729643384,0.11898273,95344.0,95330.0,0.010494]
[1768729643596,0.11898273,95344.0,95337.0,0.02829856]
[1768729644192,0.11898273,95344.0,95336.0,0.02829856]
[1768729645992,0.11898273,95344.0,95326.0,0.09368816]
[1768729645993,0.11898273,95344.0,95327.0,0.010494]
[1768729647295,0.11898273,95344.0,95329.0,0.010494]
[1768729648182,0.11898273,95344.0,95330.0,0.10474106]
[1768729649396,0.11898273,95344.0,95329.0,0.010494]
[1768729650991,0.00230743,95344.0,95329.0,0.010494]
[1768729651187,0.00230743,95344.0,95330.0,0.10474106]
[1768729651686,0.00230743,95344.0,95329.0,0.010494]
[1768729656294,0.00230743,95344.0,95330.0,0.10474106]
[1768729656495,0.00230743,95344.0,95329.0,0.010494]
[1768729656798,0.00230743,95344.0,95330.0,0.10474106]
[1768729658199,0.00230743,95344.0,95331.0,0.010494]
[1768729660002,0.00230743,95344.0,95330.0,0.10474106]
[1768729660505,0.00230743,95344.0,95335.0,0.010493]
[1768729660996,0.00230743,95344.0,95332.0,0.010494]
[1768729664204,0.00230743,95344.0,95330.0,0.30149623]
[1768729664502,0.00230743,95344.0,95334.0,0.03771114]
[1768729671011,0.00230743,95344.0,95335.0,0.03771114]
[1768729671703,0.00230743,95344.0,95334.0,0.03771114]
[1768729672007,0.00230743,95344.0,95332.0,0.03771114]
[1768729678205,0.00230743,95344.0,95332.0,0.1375332]
[1768729679211,0.03699801,95359.0,95341.0,0.09982206]
[1768729679416,0.010491,95358.0,95341.0,0.19168306]
[1768729680413,0.010492,95352.0,95339.0,0.03771114]
[1768729680616,0.10474106,95350.0,95340.0,0.03771114]
[1768729681218,0.10474106,95350.0,95339.0,0.03771114]
[1768729681519,0.01555055,95350.0,95339.0,0.03771114]
[1768729681817,0.010491,95354.0,95340.0,0.03771114]
[1768729682117,0.010491,95354.0,95342.0,0.03771114]
[1768729682318,0.010491,95354.0,95342.0,0.01382257]
[1768729684631,0.10474106,95352.0,95342.0,0.01382257]
[1768729684922,0.20983081,95356.0,95342.0,0.01382257]
[1768729685124,0.11189266,95354.0,95342.0,0.01382257]
[1768729685323,0.12732071,95354.0,95337.0,0.05643575]
[1768729686221,0.10474106,95350.0,95337.0,0.05643575]
[1768729686625,0.11189266,95349.0,95337.0,0.05643575]
[1768729686920,0.11189266,95347.0,95335.0,0.05643575]
[1768729687121,0.11189266,95346.0,95334.0,0.05643575]
[1768729691019,0.010492,95345.0,95334.0,0.05643575]
[1768729692523,0.010493,95340.0,95333.0,7.5e-07]
[1768729692728,0.010493,95344.0,95330.0,0.09448]
[1768729695833,0.010493,95344.0,95330.0,0.19922106]
[1768729696731,0.010492,95347.0,95330.0,0.19922106]
[1768729696932,0.010492,95347.0,95330.0,0.09448]
[1768729699937,0.010492,95347.0,95330.0,0.19922106]
[1768729701434,0.010492,95347.0,95330.0,0.09448]
[1768729701625,0.010492,95347.0,95330.0,0.20036689]
[1768729705434,0.010492,95347.0,95332.0,0.10593774]
[1768729705631,0.010493,95345.0,95332.0,0.10593774]
[1768729706030,0.010493,95345.0,95334.0,0.0282765]
[1768729708327,0.010493,95345.0,95335.0,0.0282765]
[1768729709536,0.010493,95343.0,95335.0,0.0282765]
[1768729711338,0.010493,95343.0,95334.0,0.0282765]
[1768729712040,0.010493,95343.0,95335.0,0.0282765]
[1768729714237,0.010492,95346.0,95335.0,0.0282765]
[1768729714435,0.010492,95346.0,95344.0,5.1e-07]
[1768729714640,0.010492,95346.0,95335.0,0.0565742]
[1768729720747,0.11482984,95352.0,95335.0,0.0565742]
[1768729721838,0.11582984,95352.0,95335.0,0.0565742]
[1768729722447,0.010492,95345.0,95335.0,0.0565742]
[1768729723344,0.010492,95345.0,95334.0,0.0565742]
[1768729725448,0.010492,95345.0,95332.0,0.16251194]
[1768729726338,0.010492,95345.0,95333.0,0.0565742]
[1768729728551,0.010493,95343.0,95332.0,0.0565742]
[1768729728737,0.010492,95347.0,95331.0,0.0565742]
[1768729728941,0.010492,95347.0,95331.0,0.16149893]
[1768729729151,0.010492,95347.0,95332.0,0.10492473]
[1768729729454,0.010492,95347.0,95332.0,0.16149893]
[1768729729643,0.22285418,95351.0,95332.0,0.16149893]
[1768729730245,0.22285418,95351.0,95333.0,0.0565742]
[1768729731153,0.010492,95347.0,95333.0,0.0565742]
[1768729731346,0.010492,95347.0,95332.0,0.16149893]
[1768729732355,0.104972,95351.0,95333.0,0.10803764]
[1768729733254,0.104972,95351.0,95334.0,0.20576277]
[1768729734242,0.104972,95351.0,95334.0,0.09772513]
[1768729734448,0.104972,95351.0,95335.0,0.1069841]
[1768729735453,0.09448,95351.0,95339.0,0.1069841]
[1768729735645,0.09448,95351.0,95340.0,0.1069841]
[1768729736260,0.09448,95351.0,95339.0,0.09772513]
[1768729738058,0.010492,95350.0,95339.0,0.09772513]
[1768729739855,0.05194776,95350.0,95339.0,0.09772513]
[1768729740468,0.010492,95350.0,95339.0,0.09772513]
[1768729741553,0.010492,95350.0,95331.0,0.20081964]
[1768729741852,0.010492,95350.0,95332.0,0.20081964]
[1768729742050,0.010492,95350.0,95330.0,0.0565742]
[1768729742051,0.010492,95350.0,95334.0,0.20081964]
[1768729742266,0.010492,95350.0,95335.0,0.10309451]
[1768729742456,0.010492,95347.0,95335.0,0.10309451]
[1768729744564,0.010492,95347.0,95336.0,0.03771928]
[1768729750075,0.010492,95347.0,95339.0,0.03771928]
[1768729754372,0.010492,95347.0,95334.0,0.09772513]
[1768729756678,0.010492,95347.0,95334.0,0.19846511]
[1768729757580,0.09448,95351.0,95341.0,0.10073998]
[1768729758477,0.09448,95351.0,95340.0,0.09772513]
[1768729758677,0.09548,95351.0,95340.0,0.09772513]
[1768729759383,0.09448,95351.0,95340.0,0.09772513]
[1768729761277,0.10472746,95350.0,95340.0,0.09772513]
[1768729762278,0.09448,95351.0,95340.0,0.09772513]
[1768729762479,0.10472746,95350.0,95340.0,0.09772513]
[1768729767582,0.10472746,95350.0,95340.0,0.13544441]
[1768729768979,0.09448,95351.0,95340.0,0.13544441]
[1768729769285,0.10472746,95350.0,95340.0,0.03771928]
[1768729771987,0.09448,95351.0,95340.0,0.03771928]
[1768729772181,0.10472746,95350.0,95340.0,0.03771928]
[1768729772386,0.10472746,95350.0,95340.0,0.01383009]
[1768729772978,0.11521946,95350.0,95340.0,0.01383009]
[1768729773282,0.11521946,95350.0,95334.0,0.0565742]
[1768729773680,0.11521946,95350.0,95334.0,0.15673303]
[1768729774590,0.11521946,95350.0,95344.0,0.02828907]
[1768729774890,0.010492,95350.0,95344.0,0.02828907]
[1768729778390,0.09448,95351.0,95344.0,0.02828907]
[1768729779391,0.11924537,95350.0,95329.0,0.00230781]
[1768729779594,0.10472746,95340.0,95331.0,0.010494]
[1768729779892,0.10875337,95349.0,95331.0,0.010494]
[1768729780087,0.10875337,95349.0,95331.0,0.0775622]
[1768729780291,0.10875337,95349.0,95332.0,0.0670682]
[1768729780985,0.10875337,95349.0,95331.0,0.010494]
[1768729781192,0.10875337,95349.0,95332.0,0.0670682]
[1768729781692,0.10875337,95349.0,95333.0,0.0670682]
[1768729781899,0.10875337,95349.0,95332.0,0.0670682]
[1768729782191,0.10875337,95349.0,95333.0,0.0670682]
[1768729782389,0.10875337,95349.0,95332.0,0.0670682]
[1768729782897,0.10875337,95349.0,95333.0,0.0670682]
[1768729783189,0.10875337,95349.0,95332.0,0.0670682]
[1768729783582,0.10875337,95349.0,95333.0,0.0670682]
[1768729783782,0.10875337,95349.0,95331.0,0.010494]
[1768729783981,0.10875337,95349.0,95333.0,0.0670682]
[1768729784189,0.010492,95348.0,95331.0,0.010494]
[1768729784394,0.010492,95348.0,95332.0,0.0670682]
[1768729784598,0.010492,95348.0,95334.0,0.0670682]
[1768729784895,0.010492,95348.0,95333.0,0.0670682]
[1768729785298,0.010492,95348.0,95335.0,0.0670682]
[1768729785589,0.010492,95348.0,95331.0,0.12577137]
[1768729785795,0.010492,95348.0,95335.0,0.0670682]
[1768729786196,0.010492,95348.0,95331.0,0.12577137]
[1768729786197,0.010492,95348.0,95336.0,0.0670682]
[1768729786398,0.010492,95348.0,95334.0,0.0670682]
[1768729786888,0.010492,95348.0,95331.0,0.12577137]
[1768729787188,0.010492,95348.0,95334.0,0.0670682]
[1768729787796,0.010492,95348.0,95336.0,0.0670682]
[1768729787998,0.010492,95348.0,95334.0,0.0670682]
[1768729788502,0.09448,95350.0,95332.0,0.09667215]
[1768729788701,0.19920746,95350.0,95336.0,0.11527737]
[1768729789201,0.10472746,95350.0,95335.0,0.09667215]
[1768729789412,0.20969946,95350.0,95335.0,0.16374035]
[1768729789701,0.20969946,95350.0,95332.0,0.11527737]
[1768729789899,0.20969946,95350.0,95334.0,0.0670682]
[1768729790302,0.20969946,95350.0,95335.0,0.0670682]
[1768729790501,0.20969946,95350.0,95334.0,0.0670682]
[1768729790902,0.20969946,95350.0,95336.0,0.0670682]
[1768729791104,0.104972,95350.0,95334.0,0.0670682]
[1768729791299,0.104972,95350.0,95332.0,0.11527737]
[1768729791300,0.20969946,95350.0,95332.0,0.11527737]
[1768729791504,0.20969946,95350.0,95335.0,0.0670682]
[1768729791701,0.20969946,95350.0,95332.0,0.11527737]
[1768729791891,0.20969946,95350.0,95335.0,0.0670682]
[1768729792506,0.20969946,95350.0,95336.0,0.0670682]
[1768729792707,0.20969946,95350.0,95335.0,0.0670682]
[1768729793098,0.20969946,95350.0,95337.0,0.0670682]
[1768729793305,0.20969946,95350.0,95335.0,0.0670682]
[1768729793807,0.20969946,95350.0,95332.0,0.11527737]
[1768729794013,0.20969946,95350.0,95335.0,0.0670682]
[1768729794305,0.20969946,95350.0,95332.0,0.11527737]
[1768729794508,0.20969946,95350.0,95337.0,0.11692438]
[1768729794704,0.20969946,95350.0,95338.0,0.0670682]
[1768729795107,0.20969946,95350.0,95336.0,0.09620954]
[1768729795611,0.20969946,95350.0,95338.0,0.0670682]
[1768729795811,0.20969946,95350.0,95336.0,0.0670682]
[1768729796108,0.20969946,95350.0,95333.0,0.11692438]
[1768729796409,0.20969946,95350.0,95336.0,0.0670682]
[1768729797009,0.20969946,95350.0,95338.0,0.0670682]
[1768729797210,0.20969946,95350.0,95337.0,0.0670682]
[1768729797512,0.20969946,95350.0,95336.0,0.0670682]
[1768729797699,0.20969946,95350.0,95337.0,0.0670682]
[1768729797903,0.20969946,95350.0,95333.0,0.11692438]
[1768729798106,0.20969946,95350.0,95337.0,0.0670682]
[1768729798609,0.20969946,95350.0,95339.0,0.0670682]
[1768729798811,0.20969946,95350.0,95337.0,0.0670682]
[1768729799312,0.20969946,95350.0,95339.0,0.0670682]
[1768729799513,0.20969946,95350.0,95337.0,0.0670682]
[1768729799815,0.010492,95347.0,95339.0,0.0670682]
[1768729800004,0.010492,95347.0,95337.0,0.0670682]
[1768729800203,0.010492,95347.0,95339.0,0.0670682]
[1768729800706,0.010492,95347.0,95342.0,0.0670682]
[1768729800907,0.010492,95347.0,95339.0,0.0670682]
[1768729801514,0.010492,95347.0,95342.0,0.0670682]
[1768729801715,0.010492,95347.0,95339.0,0.0670682]
[1768729801916,0.104972,95350.0,95339.0,0.0670682]
[1768729802120,0.20969946,95350.0,95341.0,0.0670682]
[1768729802410,0.09448,95350.0,95339.0,0.11692438]
[1768729802617,0.10472746,95351.0,95340.0,0.11692438]
[1768729802917,0.010492,95353.0,95341.0,0.0670682]
[1768729802918,0.10472746,95350.0,95341.0,0.0670682]
[1768729803118,0.10472746,95350.0,95342.0,0.0670682]
[1768729803409,0.10472746,95350.0,95344.0,0.0670682]
[1768729803612,0.09448,95353.0,95344.0,0.0670682]
[1768729804317,0.09448,95353.0,95345.0,0.0670682]
[1768729804506,0.09448,95353.0,95343.0,0.0670682]
[1768729804913,0.010492,95352.0,95344.0,0.0670682]
[1768729805113,0.010492,95352.0,95343.0,0.0670682]
[1768729805419,0.010492,95352.0,95344.0,0.0670682]
[1768729805820,0.010492,95352.0,95346.0,0.0670682]
[1768729806122,0.010492,95352.0,95344.0,0.0670682]
[1768729806513,0.010492,95352.0,95341.0,0.03772254]
[1768729806714,0.10472746,95351.0,95341.0,0.03772254]
[1768729807410,0.010492,95350.0,95341.0,0.03772254]
[1768729808216,0.21525325,95351.0,95341.0,0.03772254]
[1768729809424,0.010492,95348.0,95341.0,0.03772254]
[1768729812025,0.11521946,95351.0,95341.0,0.03772254]
[1768729813615,0.11521946,95351.0,95344.0,0.03772254]
[1768729813819,0.09448,95353.0,95339.0,0.05658301]
[1768729814215,0.01163984,95354.0,95342.0,0.09620954]
[1768729814416,0.010491,95361.0,95343.0,0.11692438]
[1768729814417,0.09448,95358.0,95343.0,0.11692438]
[1768729815330,0.09448,95358.0,95340.0,0.05027589]
[1768729815630,0.10472746,95350.0,95336.0,0.09620954]
[1768729816727,0.10472746,95350.0,95336.0,0.21313392]
[1768729819232,0.010492,95349.0,95336.0,0.21313392]
[1768729823834,0.010492,95347.0,95336.0,0.21313392]
[1768729824234,0.010492,95350.0,95339.0,0.05658301]
[1768729824438,0.010492,95350.0,95338.0,0.05655149]
[1768729824839,0.010492,95350.0,95339.0,0.05655149]
[1768729831241,0.010492,95353.0,95339.0,0.05655149]
[1768729834334,0.010492,95353.0,95343.0,0.05655149]
[1768729834945,0.010492,95353.0,95342.0,0.05655149]
[1768729835645,0.010492,95349.0,95333.0,0.07535147]
[1768729836045,0.010492,95349.0,95333.0,0.1924376]
[1768729838447,0.010492,95349.0,95334.0,0.11708613]
[1768729838649,0.010492,95349.0,95334.0,0.21214064]
[1768729840240,0.010492,95349.0,95335.0,0.11708613]
[1768729842440,0.010492,95349.0,95335.0,0.21214064]
[1768729842641,0.010492,95349.0,95336.0,0.11708613]
[1768729843845,0.010492,95349.0,95346.0,6.6e-07]
[1768729844552,0.010492,95349.0,95342.0,0.0282882]
[1768729848250,0.010492,95349.0,95336.0,0.11708613]
[1768729848251,0.010492,95349.0,95341.0,0.0282882]
[1768729848553,0.010492,95349.0,95342.0,0.0282882]
[1768729849957,0.010492,95347.0,95342.0,0.0282882]
[1768729851255,0.010492,95347.0,95341.0,0.0282882]
[1768729851754,0.010492,95347.0,95342.0,0.0282882]
[1768729852353,0.010492,95347.0,95341.0,0.0282882]
[1768729853355,0.010492,95350.0,95341.0,0.0282882]
[1768729854452,0.010492,95350.0,95349.0,2e-07]
[1768729854756,0.0166056,95354.0,95337.0,0.11469408]
[1768729854959,0.09448,95355.0,95337.0,0.11469408]
[1768729855549,0.09448,95355.0,95340.0,0.05657496]
[1768729856059,0.001,95354.0,95340.0,0.05657496]
[1768729856555,0.010492,95348.0,95340.0,0.05657496]
[1768729856759,0.01802995,95354.0,95340.0,0.05657496]
[1768729857452,0.01702995,95354.0,95340.0,0.05657496]
[1768729857653,0.09548,95355.0,95340.0,0.05657496]
[1768729858249,0.010492,95351.0,95340.0,0.05657496]
[1768729858458,0.010492,95351.0,95340.0,0.17126904]
[1768729858661,0.09448,95352.0,95340.0,0.17126904]
[1768729859053,0.09448,95352.0,95341.0,0.05657496]
[1768729859358,0.010492,95351.0,95341.0,0.05657496]